bitfinex/quotes_SOLUSD_20250929
["timestamp","ask_amount","ask_price","bid_price","bid_amount"]
[1759139035293,26.71,208.54,208.49,41.71636872]
[1759139035606,26.71,208.54,208.49,41.81636872]
[1759139035806,0.71,208.54,208.49,41.71636872]
[1759139036006,26.71,208.54,208.49,41.71636872]
[1759139037890,26.0,208.54,208.5,0.1]
[1759139038088,26.71,208.54,208.49,41.71636872]
[1759139038309,26.71,208.54,208.49,41.81636872]
[1759139039001,26.0,208.54,208.5,0.1]
[1759139039306,26.71,208.54,208.49,53.7073515]
[1759139039611,26.71,208.54,208.49,53.8073515]
[1759139040009,26.0,208.54,208.51,4.79593304]
[1759139040310,26.71,208.54,208.51,4.79593304]
[1759139041415,26.71,208.54,208.52,36.82]
[1759139042407,0.71,208.54,208.52,41.6155735]
[1759139042791,26.71,208.54,208.52,41.6155735]
[1759139043634,40.42411713,208.57,208.52,41.7155735]
[1759139043809,26.71,208.57,208.52,41.7155735]
[1759139044410,26.71,208.57,208.52,53.70483112]
[1759139044716,0.71,208.56,208.52,16.78483112]
[1759139044913,26.0,208.57,208.53,36.82]
[1759139045118,26.71,208.57,208.53,36.82]
[1759139045318,0.71,208.56,208.53,36.82]
[1759139045821,0.71,208.55,208.49,4.89637639]
[1759139046015,0.71,208.54,208.5,36.82]
[1759139046212,0.71,208.53,208.49,0.1]
[1759139046416,0.71,208.53,208.51,36.82]
[1759139046724,0.71,208.52,208.51,36.82]
[1759139050122,0.71,208.52,208.49,0.1]
[1759139050319,0.71,208.52,208.5,36.82]
[1759139050623,0.71,208.51,208.5,36.82]
[1759139050821,4.79551857,208.53,208.5,36.82]
[1759139051027,0.71,208.51,208.5,36.82]
[1759139052114,0.71,208.51,208.49,0.1]
[1759139052314,26.0,208.5,208.49,0.1]
[1759139052511,26.71,208.5,208.49,0.1]
[1759139053118,0.71,208.5,208.49,0.1]
[1759139054138,40.42827943,208.51,208.49,0.1]
[1759139054527,0.69,208.5,208.49,0.1]
[1759139054737,0.69,208.5,208.49,36.92]
[1759139054913,0.69,208.5,208.49,0.1]
[1759139055114,0.69,208.5,208.49,36.92]
[1759139057138,0.69,208.5,208.49,0.1]
[1759139057324,0.69,208.5,208.49,36.92]
[1759139057628,0.69,208.5,208.49,0.1]
[1759139057831,0.69,208.5,208.49,36.92]
[1759139060040,26.0,208.51,208.49,41.71636821]
[1759139060335,0.69,208.5,208.49,41.71636821]
[1759139060741,0.69,208.5,208.49,0.1]
[1759139060920,0.69,208.5,208.49,36.92]
[1759139066740,0.69,208.5,208.49,0.1]
[1759139066944,0.69,208.5,208.49,36.92]
[1759139070425,0.69,208.5,208.49,0.1]
[1759139070627,0.69,208.5,208.49,36.92]
[1759139072252,0.69,208.5,208.49,0.1]
[1759139072442,0.69,208.5,208.49,36.92]
[1759139072644,0.69,208.5,208.49,0.1]
[1759139072843,0.69,208.5,208.49,36.92]
[1759139073148,26.0,208.51,208.49,41.71639311]
[1759139074236,26.0,208.51,208.5,36.82]
[1759139075033,26.69,208.51,208.5,36.82]
[1759139075234,26.0,208.51,208.5,36.82]
[1759139075952,26.69,208.51,208.5,36.82]
[1759139076955,26.69,208.51,208.49,4.89639311]
[1759139077143,26.69,208.51,208.5,36.82]
[1759139080355,26.69,208.51,208.49,0.1]
[1759139080561,26.69,208.51,208.5,36.82]
[1759139082457,26.0,208.51,208.5,36.82]
[1759139082842,26.69,208.51,208.5,36.82]
[1759139083244,26.69,208.51,208.49,4.89636584]
[1759139083548,26.69,208.51,208.5,36.82]
[1759139085848,26.0,208.51,208.5,41.61616306]
[1759139088258,26.69,208.51,208.5,36.82]
[1759139089146,26.69,208.51,208.49,4.89635721]
[1759139089354,26.69,208.51,208.5,36.82]
[1759139090163,29.92826956,208.51,208.5,36.82]
[1759139093149,29.23826956,208.51,208.5,36.82]
[1759139093363,29.93826956,208.51,208.5,36.82]
[1759139096970,29.93826956,208.51,208.49,4.89636422]
[1759139096971,29.93826956,208.51,208.49,36.92]
[1759139097146,0.7,208.5,208.49,36.92]
[1759139098172,40.42758554,208.51,208.49,41.71639311]
[1759139098551,41.12758554,208.51,208.49,41.71639311]
[1759139098749,40.42758554,208.51,208.49,41.71639311]
[1759139099173,41.12758554,208.51,208.49,41.71639311]
[1759139101374,40.42758554,208.51,208.49,36.92]
[1759139101558,0.7,208.5,208.49,36.92]
[1759139101955,41.12758554,208.51,208.49,41.71635649]
[1759139103585,40.42758554,208.51,208.49,36.92]
[1759139103767,41.12758554,208.51,208.49,36.92]
[1759139103959,41.12758554,208.51,208.49,4.89637941]
[1759139104278,41.12758554,208.51,208.5,36.82]
[1759139104486,44.36911492,208.51,208.5,36.82]
[1759139104791,44.36911492,208.51,208.49,4.89637941]
[1759139105090,41.12758554,208.51,208.5,36.82]
[1759139105382,44.36907695,208.51,208.5,36.82]
[1759139105693,44.36907695,208.51,208.49,4.89637941]
[1759139105976,41.12758554,208.51,208.5,36.82]
[1759139106192,44.36907547,208.51,208.5,36.82]
[1759139108188,43.66907547,208.51,208.5,41.61616306]
[1759139108480,172.39559401,208.55,208.5,41.71616306]
[1759139108679,17.66747689,208.54,208.5,41.71616306]
[1759139108884,3.24127891,208.53,208.5,53.70657073]
[1759139109091,14.42619798,208.54,208.5,53.70657073]
[1759139109292,159.5,208.55,208.5,53.70657073]
[1759139109470,3.24021919,208.54,208.5,53.70657073]
[1759139109653,173.92550429,208.55,208.5,53.70657073]
[1759139109854,3.24021884,208.54,208.5,53.70657073]
[1759139110054,41.12550429,208.55,208.5,53.70657073]
[1759139110472,0.7,208.54,208.5,53.70657073]
[1759139110661,41.12550429,208.55,208.5,53.70657073]
[1759139111982,26.0,208.55,208.51,0.1]
[1759139112170,26.0,208.55,208.52,36.82]
[1759139112374,26.0,208.55,208.52,36.92]
[1759139112765,14.42342364,208.57,208.53,0.1]
[1759139112963,13.59559401,208.61,208.5,16.78657073]
[1759139112964,0.7,208.56,208.54,41.59524311]
[1759139113173,0.7,208.56,208.54,4.79524311]
[1759139113363,0.7,208.56,208.55,36.8]
[1759139114257,14.42273023,208.58,208.55,41.59501318]
[1759139114465,0.71,208.57,208.55,41.59501318]
[1759139114865,3.2360153,208.58,208.55,41.59501318]
[1759139115167,3.9460153,208.58,208.55,41.59501318]
[1759139115369,0.71,208.58,208.55,41.59501318]
[1759139116481,17.65874553,208.59,208.55,41.59501318]
[1759139116673,0.71,208.57,208.55,36.8]
[1759139117383,0.71,208.57,208.55,41.59490471]
[1759139117576,0.71,208.56,208.52,4.79570305]
[1759139117778,22.45284671,208.59,208.49,0.1]
[1759139117779,0.71,208.55,208.53,36.8]
[1759139117984,0.71,208.54,208.53,36.8]
[1759139121382,0.71,208.54,208.52,4.79565788]
[1759139121582,0.66,208.53,208.52,36.8]
[1759139121790,12.65032473,208.53,208.52,36.8]
[1759139122665,26.0,208.55,208.52,36.8]
[1759139122881,40.42411713,208.55,208.52,36.8]
[1759139123085,41.08411713,208.55,208.52,36.8]
[1759139123581,41.08411713,208.55,208.53,4.79547307]
[1759139123774,40.42411713,208.55,208.54,36.8]
[1759139124475,41.08411713,208.55,208.54,36.8]
[1759139129984,41.08411713,208.55,208.53,4.79532737]
[1759139130288,14.42411713,208.55,208.54,41.59524311]
[1759139130584,0.66,208.59,208.54,41.59524311]
[1759139130790,0.66,208.58,208.54,41.59524311]
[1759139130992,0.66,208.57,208.54,41.59524311]
[1759139131486,0.66,208.56,208.55,36.8]
[1759139132883,0.66,208.58,208.55,41.59501318]
[1759139133074,40.42342364,208.59,208.55,41.59501318]
[1759139133277,0.66,208.57,208.55,41.59501318]
[1759139133464,0.66,208.57,208.5,0.1]
[1759139133672,0.66,208.57,208.51,36.8]
[1759139133972,0.66,208.56,208.51,36.8]
[1759139134366,0.66,208.56,208.52,4.79570305]
[1759139134686,0.66,208.56,208.52,41.59570305]
[1759139134873,15.08342364,208.58,208.52,53.68496067]
[1759139135190,0.66,208.57,208.52,53.68496067]
[1759139136687,26.66,208.57,208.52,53.68496067]
[1759139137196,0.66,208.56,208.52,53.58496067]
[1759139137491,0.66,208.55,208.52,53.58496067]
[1759139137791,0.66,208.54,208.52,53.58496067]
[1759139137992,0.66,208.54,208.53,36.8]
[1759139138378,0.66,208.54,208.5,4.79596696]
[1759139138695,0.66,208.53,208.51,36.8]
[1759139138891,0.66,208.52,208.51,36.8]
[1759139139381,0.66,208.52,208.5,4.79596696]
[1759139139579,0.66,208.52,208.51,36.8]
[1759139139782,0.66,208.52,208.49,4.89638217]
[1759139139980,4.79547307,208.53,208.49,0.1]
[1759139140186,26.0,208.5,208.49,36.9]
[1759139140494,26.66,208.5,208.49,0.1]
[1759139142103,0.66,208.5,208.49,0.1]
[1759139142399,45.05175707,208.5,208.49,0.1]
[1759139142603,62.68565736,208.5,208.49,0.1]
[1759139143791,99.48565736,208.5,208.49,0.1]
[1759139146202,39.59559401,208.46,208.45,26.06719008]
[1759139146510,42.46909404,208.46,208.45,26.06719008]
[1759139146806,50.47249216,208.46,208.45,26.06719008]
[1759139146985,64.90701955,208.46,208.45,26.06719008]
[1759139147385,61.7007048,208.46,208.45,26.06719008]
[1759139147985,64.8966921,208.46,208.45,26.06719008]
[1759139148312,61.7007048,208.46,208.45,26.06719008]
[1759139150007,194.5007048,208.46,208.45,26.06719008]
[1759139153285,192.28720477,208.46,208.45,26.06719008]
[1759139153519,194.5007048,208.46,208.45,26.06719008]
[1759139155090,61.7007048,208.46,208.45,0.7729483]
[1759139155319,39.59559401,208.38,208.37,0.1]
[1759139156021,30.90034871,208.38,208.37,0.1]
[1759139158117,4.90034871,208.38,208.37,0.1]
[1759139158512,9.69927375,208.38,208.37,0.1]
[1759139158692,35.69927375,208.38,208.37,0.1]
[1759139160215,49.29486776,208.38,208.37,0.1]
[1759139160415,49.98486776,208.38,208.37,0.1]
[1759139160809,23.98486776,208.38,208.37,0.1]
[1759139167219,26.19836779,208.38,208.37,0.1]
[1759139171800,18.49594272,208.38,208.37,0.1]
[1759139173028,23.29486776,208.38,208.37,0.1]
[1759139173419,23.98486776,208.38,208.37,0.1]
[1759139176332,23.29486776,208.38,208.37,0.1]
[1759139176841,23.98486776,208.38,208.37,0.1]
[1759139177610,18.49594272,208.38,208.37,0.2]
[1759139177810,4.90034871,208.38,208.37,0.2]
[1759139178009,132.8,208.39,208.37,0.1]
[1759139178211,12.00071617,208.39,208.37,0.2]
[1759139178435,26.0,208.38,208.37,0.2]
[1759139178818,25.59631018,208.4,208.37,0.2]
[1759139179138,26.0,208.38,208.37,0.2]
[1759139180026,26.0,208.38,208.37,0.1]
[1759139182312,26.0,208.38,208.37,0.2]
[1759139182717,26.0,208.39,208.37,4.99915534]
[1759139182935,0.7,208.38,208.37,0.1]
[1759139183713,5.49892504,208.38,208.37,0.1]
[1759139184012,49.89435885,208.38,208.37,0.1]
[1759139184243,23.89435885,208.38,208.37,0.1]
[1759139184913,49.89435885,208.38,208.37,0.1]
[1759139185334,23.89435885,208.38,208.37,0.1]
[1759139185824,49.89435885,208.38,208.37,0.1]
[1759139186023,23.89435885,208.38,208.37,0.1]
[1759139188341,49.89435885,208.38,208.37,0.1]
[1759139188548,23.19435885,208.38,208.37,0.1]
[1759139188718,23.89435885,208.38,208.37,0.1]
[1759139189336,27.09653991,208.38,208.37,0.1]
[1759139189525,23.89435885,208.38,208.37,0.1]
[1759139189843,27.09653991,208.38,208.37,0.1]
[1759139190040,49.89435885,208.38,208.37,0.1]
[1759139190237,27.09653991,208.38,208.37,0.1]
[1759139190436,23.89435885,208.38,208.37,0.1]
[1759139190643,53.09653991,208.38,208.37,0.1]
[1759139191032,27.09653991,208.38,208.37,0.1]
[1759139191233,23.89435885,208.38,208.37,0.1]
[1759139191435,49.89435885,208.38,208.37,0.1]
[1759139191633,27.09653991,208.38,208.37,0.1]
[1759139191951,23.89435885,208.38,208.37,0.1]
[1759139196435,27.09653991,208.38,208.37,0.1]
[1759139196641,23.89435885,208.38,208.37,0.1]
[1759139196842,27.09653991,208.38,208.37,0.1]
[1759139197141,23.89435885,208.38,208.37,0.1]
[1759139197337,27.09653991,208.38,208.37,0.1]
[1759139197548,18.39543381,208.38,208.37,0.1]
[1759139197853,21.59761487,208.38,208.37,0.1]
[1759139198154,4.7998398,208.38,208.37,0.1]
[1759139198451,30.7998398,208.38,208.37,0.1]
[1759139198655,0.7,208.43,208.37,0.2]
[1759139198955,3.20951052,208.42,208.38,0.1]
[1759139199147,26.0,208.4,208.38,0.1]
[1759139199455,3.20951052,208.42,208.38,0.1]
[1759139199753,26.0,208.4,208.38,4.8987558]
[1759139200647,3.20951052,208.42,208.38,4.7987558]
[1759139200853,3.90951052,208.44,208.39,0.1]
[1759139201040,26.0,208.42,208.38,4.8987558]
[1759139201235,26.0,208.42,208.39,0.1]
[1759139201450,26.0,208.43,208.39,0.1]
[1759139201655,26.0,208.43,208.4,0.1]
[1759139202033,0.7,208.45,208.4,0.1]
[1759139202234,26.0,208.44,208.41,0.1]
[1759139202542,3.90951052,208.46,208.41,0.1]
[1759139202744,26.0,208.44,208.41,0.1]
[1759139202945,26.0,208.44,208.4,0.1]
[1759139203759,26.0,208.44,208.41,4.79823424]
[1759139203938,26.0,208.44,208.4,4.89843445]
[1759139204347,3.20951052,208.46,208.41,0.1]
[1759139204644,3.9063032,208.48,208.41,0.1]
[1759139204842,0.7,208.47,208.41,0.1]
[1759139205342,26.0,208.46,208.41,0.1]
[1759139205651,0.7,208.45,208.4,4.79843445]
[1759139205849,26.7,208.44,208.38,16.89623764]
[1759139207355,0.7,208.44,208.38,16.89623764]
[1759139208261,26.0,208.45,208.39,0.1]
[1759139208458,9.42244034,208.48,208.39,0.1]
[1759139208459,26.0,208.47,208.39,0.1]
[1759139209758,0.7,208.49,208.39,0.1]
[1759139210062,0.7,208.49,208.4,16.79462571]
[1759139210240,0.7,208.48,208.41,0.1]
[1759139211660,0.7,208.48,208.42,16.7930141]
[1759139211864,0.71,208.47,208.42,16.7930141]
[1759139212166,0.71,208.46,208.42,16.7930141]
[1759139212464,0.71,208.48,208.42,16.8930141]
[1759139213472,26.0,208.5,208.43,0.1]
[1759139213641,26.0,208.5,208.43,36.9]
[1759139213965,51.17849158,208.53,208.44,0.1]
[1759139214165,0.71,208.52,208.42,16.7930141]
[1759139214344,26.0,208.5,208.43,36.8]
[1759139214546,0.71,208.49,208.43,36.8]
[1759139214746,0.71,208.48,208.43,36.8]
[1759139214969,0.71,208.47,208.42,4.79800403]
[1759139215275,0.71,208.46,208.39,11.99657049]
[1759139215447,0.71,208.45,208.39,11.99657049]
[1759139215644,0.71,208.44,208.39,11.99657049]
[1759139216059,0.71,208.44,208.39,12.09657049]
[1759139216674,14.30559401,208.48,208.4,0.1]
[1759139216879,0.71,208.48,208.4,0.1]
[1759139217465,5.50662507,208.48,208.41,16.79381986]
[1759139217763,0.71,208.47,208.41,16.79381986]
[1759139217970,4.79662507,208.48,208.41,16.79381986]
[1759139218177,0.71,208.46,208.41,16.79381986]
[1759139218350,0.71,208.45,208.41,16.79381986]
[1759139218558,0.71,208.44,208.41,11.99558562]
[1759139220168,45.22675573,208.49,208.41,11.99558562]
[1759139220361,0.71,208.45,208.41,11.99558562]
[1759139220563,0.71,208.44,208.41,11.99558562]
[1759139221458,0.71,208.43,208.4,4.79846449]
[1759139221970,0.71,208.45,208.4,4.79846449]
[1759139222277,0.71,208.44,208.4,4.79846449]
[1759139223050,0.71,208.44,208.39,53.59543163]
[1759139223254,0.71,208.44,208.39,53.69543163]
[1759139224573,26.0,208.45,208.4,36.9]
[1759139224773,0.71,208.44,208.4,36.8]
[1759139224953,26.0,208.45,208.4,36.8]
[1759139225150,26.71,208.45,208.4,36.8]
[1759139225354,0.71,208.44,208.4,36.8]
[1759139225555,0.71,208.43,208.39,4.79869475]
[1759139225756,0.71,208.42,208.37,4.89892821]
[1759139225964,0.71,208.41,208.37,0.1]
[1759139226163,26.0,208.4,208.37,0.1]
[1759139226363,0.71,208.39,208.37,0.1]
[1759139226559,0.71,208.38,208.37,0.1]
[1759139228065,0.71,208.38,208.37,4.89915534]
[1759139228297,26.71,208.4,208.37,4.89915534]
[1759139229171,26.0,208.4,208.37,4.89915534]
[1759139229569,26.71,208.4,208.37,4.89915534]
[1759139229769,0.71,208.39,208.37,4.89915534]
[1759139233276,26.0,208.4,208.37,4.89915534]
[1759139233478,0.71,208.39,208.37,4.89915534]
[1759139233682,0.71,208.38,208.37,4.89915534]
[1759139233885,26.71,208.4,208.37,4.89915534]
[1759139234073,26.0,208.4,208.37,4.89915534]
[1759139234276,0.71,208.39,208.37,4.89915534]
[1759139234680,0.71,208.38,208.37,0.1]
[1759139240095,40.437306,208.4,208.37,4.89909558]
[1759139240292,26.0,208.39,208.37,4.89909558]
[1759139240804,26.71,208.39,208.37,4.89909558]
[1759139241474,26.0,208.4,208.37,4.89909558]
[1759139241700,26.68,208.4,208.37,4.89909558]
[1759139243402,0.68,208.39,208.37,4.89909558]
[1759139243999,0.68,208.38,208.37,4.89909558]
[1759139244899,26.0,208.39,208.37,4.89909558]
[1759139245104,0.68,208.38,208.37,4.89909558]
[1759139247003,26.68,208.4,208.37,4.89909558]
[1759139247207,26.0,208.4,208.37,4.89909558]
[1759139247511,0.68,208.39,208.37,4.89909558]
[1759139248192,0.68,208.38,208.37,0.1]
[1759139250900,26.0,208.39,208.37,4.89910656]
[1759139251102,26.68,208.39,208.37,4.89910656]
[1759139251836,0.68,208.38,208.37,4.89910656]
[1759139255575,0.68,208.39,208.37,4.89910656]
[1759139255777,0.68,208.38,208.37,4.89910656]
[1759139259210,0.68,208.38,208.37,0.1]
[1759139261906,0.68,208.38,208.37,4.89915534]
[1759139267226,26.68,208.4,208.37,4.89915534]
[1759139267420,0.68,208.39,208.37,4.89915534]
[1759139267900,3.21086306,208.44,208.37,16.89704371]
[1759139268100,3.2113043,208.44,208.39,4.79869475]
[1759139268420,0.68,208.45,208.4,0.1]
[1759139268602,3.8913043,208.45,208.4,0.1]
[1759139269013,0.68,208.45,208.4,0.1]
[1759139269526,3.8913043,208.45,208.4,0.1]
[1759139270325,0.68,208.49,208.41,16.79381986]
[1759139270498,0.68,208.49,208.42,0.1]
[1759139271195,26.68,208.49,208.42,0.1]
[1759139271597,0.68,208.49,208.42,0.1]
[1759139272012,26.68,208.49,208.43,16.79220841]
[1759139272227,0.71,208.48,208.43,16.79220841]
[1759139272430,0.71,208.47,208.43,16.79220841]
[1759139273219,0.71,208.46,208.43,53.59220841]
[1759139273504,0.71,208.45,208.43,53.59220841]
[1759139273703,26.0,208.49,208.43,53.59220841]
[1759139273704,0.71,208.44,208.43,53.59220841]
[1759139274101,0.71,208.44,208.4,16.79462571]
[1759139274304,0.71,208.44,208.41,36.8]
[1759139274621,0.71,208.47,208.41,36.9]
[1759139275003,26.0,208.48,208.41,36.8]
[1759139275202,0.71,208.47,208.41,36.8]
[1759139275702,0.71,208.47,208.42,36.8]
[1759139275902,0.71,208.47,208.43,36.8]
[1759139276225,26.0,208.48,208.44,4.79754365]
[1759139276226,0.71,208.46,208.44,4.79754365]
[1759139276412,0.71,208.45,208.44,4.79754365]
[1759139277321,0.71,208.47,208.44,4.79754365]
[1759139277524,0.71,208.46,208.44,4.79754365]
[1759139277913,26.0,208.47,208.44,4.79754365]
[1759139278223,0.71,208.45,208.44,4.79754365]
[1759139279131,0.71,208.45,208.4,11.99583559]
[1759139279313,0.71,208.44,208.41,36.8]
[1759139279904,0.71,208.44,208.4,11.99583559]
[1759139280107,0.71,208.43,208.39,4.79869475]
[1759139280420,26.0,208.46,208.41,36.8]
[1759139280603,0.71,208.45,208.41,36.8]
[1759139280803,0.71,208.44,208.41,36.8]
[1759139281000,26.0,208.45,208.41,36.9]
[1759139281204,26.0,208.45,208.39,16.89543163]
[1759139281432,0.71,208.44,208.4,36.8]
[1759139282315,26.0,208.45,208.41,4.79823424]
[1759139282528,4.79665188,208.48,208.41,4.79823424]
[1759139282529,0.71,208.48,208.42,0.1]
[1759139282730,26.71,208.48,208.42,0.1]
[1759139283118,0.71,208.48,208.42,0.1]
[1759139283636,2.21533149,208.52,208.42,0.1]
[1759139283637,26.71,208.5,208.42,0.1]
[1759139283934,0.71,208.52,208.42,13.69559401]
[1759139284139,0.71,208.52,208.43,0.1]
[1759139284339,0.71,208.52,208.44,53.61140279]
[1759139284632,0.71,208.52,208.45,0.1]
[1759139285339,0.71,208.52,208.46,16.7897918]
[1759139286126,0.71,208.52,208.46,16.8897918]
[1759139286529,0.71,208.54,208.47,0.1]
[1759139286748,0.71,208.54,208.48,36.82]
[1759139287150,26.71,208.56,208.49,0.1]
[1759139287526,0.71,208.56,208.49,0.1]
[1759139288332,26.0,208.59,208.5,16.78657073]
[1759139288526,0.71,208.58,208.51,0.1]
[1759139288839,0.71,208.58,208.52,36.82]
[1759139289151,0.71,208.57,208.52,36.82]
[1759139289367,0.71,208.56,208.52,36.82]
[1759139290035,0.71,208.59,208.53,0.1]
[1759139290547,0.71,208.59,208.54,16.7833509]
[1759139290751,0.71,208.61,208.55,0.1]
[1759139290926,0.71,208.61,208.56,36.82]
[1759139292049,0.71,208.61,208.56,36.92]
[1759139292844,0.71,208.61,208.57,16.78093684]
[1759139293756,0.68,208.62,208.57,16.78093684]
[1759139293943,26.0,208.65,208.57,16.88093684]
[1759139294153,0.68,208.64,208.58,36.84]
[1759139294448,0.68,208.63,208.58,36.84]
[1759139294652,0.68,208.62,208.58,36.84]
[1759139295254,0.68,208.62,208.59,4.79409367]
[1759139295462,0.68,208.61,208.54,11.98770557]
[1759139295636,26.0,208.62,208.54,11.98770557]
[1759139295637,0.68,208.6,208.55,36.84]
[1759139295842,0.68,208.59,208.55,36.84]
[1759139296033,0.68,208.59,208.56,36.88]
[1759139296250,0.68,208.58,208.56,36.88]
[1759139296452,0.68,208.57,208.56,36.88]
[1759139296743,26.0,208.62,208.56,36.86]
[1759139297044,0.68,208.58,208.56,36.86]
[1759139297432,26.0,208.62,208.57,4.79455338]
[1759139298145,0.68,208.61,208.57,4.79455338]
[1759139298344,0.68,208.6,208.57,4.79455338]
[1759139298550,0.68,208.59,208.57,4.79455338]
[1759139298736,0.68,208.58,208.57,4.79455338]
[1759139298935,0.68,208.58,208.51,11.9897953]
[1759139299162,0.68,208.57,208.52,41.67570305]
[1759139299663,0.68,208.56,208.52,36.88]
[1759139299851,0.68,208.55,208.52,41.6756948]
[1759139300856,7.00942907,208.59,208.52,41.6756948]
[1759139301031,0.66,208.54,208.52,41.6756948]
[1759139301947,0.66,208.54,208.52,36.88]
[1759139302146,4.79437424,208.58,208.52,36.88]
[1759139302340,0.66,208.54,208.52,36.88]
[1759139302761,0.66,208.57,208.52,36.98]
[1759139303933,0.66,208.58,208.53,16.78415575]
[1759139304329,0.66,208.57,208.53,16.78415575]
[1759139304956,0.66,208.59,208.53,16.78415575]
[1759139305130,26.66,208.61,208.54,0.1]
[1759139305337,26.66,208.61,208.55,36.88]
[1759139305838,26.0,208.62,208.55,36.88]
[1759139306052,0.66,208.65,208.56,0.1]
[1759139306367,0.66,208.64,208.56,0.1]
[1759139307239,0.66,208.64,208.57,16.78093684]
[1759139307443,0.66,208.63,208.57,16.78093684]
[1759139309462,0.66,208.62,208.58,36.9]
[1759139309765,0.66,208.61,208.57,16.78093684]
[1759139309959,0.66,208.6,208.58,36.9]
[1759139310259,0.66,208.59,208.58,36.9]
[1759139310462,2.21533149,208.63,208.58,36.9]
[1759139310645,0.66,208.61,208.58,36.9]
[1759139310840,0.66,208.6,208.58,36.9]
[1759139311891,0.66,208.63,208.58,36.9]
[1759139312052,0.2,208.66,208.58,37.0]
[1759139312245,0.66,208.65,208.59,16.77932786]
[1759139313654,26.2,208.66,208.59,16.77932786]
[1759139313836,0.66,208.65,208.59,16.77932786]
[1759139318560,0.66,208.64,208.59,16.77932786]
[1759139318877,0.66,208.63,208.59,16.77932786]
[1759139320274,0.66,208.62,208.6,41.67379154]
[1759139320452,0.66,208.61,208.6,41.67379154]
[1759139321280,0.66,208.63,208.6,41.67379154]
[1759139321577,0.66,208.62,208.6,41.67379154]
[1759139321774,26.0,208.63,208.6,41.67379154]
[1759139322079,0.66,208.61,208.6,41.69379154]
[1759139323079,0.66,208.65,208.6,53.67845117]
[1759139323383,0.66,208.64,208.6,53.67845117]
[1759139323756,0.66,208.63,208.6,53.67845117]
[1759139325180,0.2,208.66,208.6,53.67845117]
[1759139325480,26.66,208.65,208.6,53.67845117]
[1759139325877,0.66,208.64,208.6,53.67845117]
[1759139326178,0.66,208.63,208.6,53.67845117]
[1759139327174,0.66,208.62,208.6,53.67845117]
[1759139327355,0.66,208.61,208.6,41.69379154]
[1759139327551,33.20782695,208.66,208.6,41.69379154]
[1759139327752,0.66,208.65,208.6,41.69379154]
[1759139327968,0.66,208.64,208.6,41.69379154]
[1759139328165,26.66,208.63,208.6,36.9]
[1759139328373,0.66,208.62,208.6,36.9]
[1759139328568,0.66,208.61,208.58,4.79427191]
[1759139328881,0.66,208.6,208.59,36.9]
[1759139329272,0.66,208.6,208.58,4.79427191]
[1759139329781,0.66,208.62,208.58,41.69427191]
[1759139329986,0.66,208.61,208.58,41.69427191]
[1759139330577,0.66,208.64,208.58,41.69427191]
[1759139330884,26.66,208.65,208.59,0.1]
[1759139331078,0.66,208.65,208.59,0.1]
[1759139331477,0.66,208.65,208.6,16.77852348]